[Event "*** SCC Grand Prix: Titled Tuesday Blitz"]
[Site "Chess.com"]
[Date "2020.06.02"]
[Round "3"]
[White "umngqusho"]
[Black "GodDMuhammad"]
[Result "1-0"]
[WhiteElo "2504"]
[BlackElo "2285"]
[TimeControl "180+1"]
[EndTime "10:29:15 PDT"]
[Termination "umngqusho won by checkmate"]

1. e4 {[%clk 0:03:00.9]} 1... c6 {[%clk 0:02:58.5]} 2. d3 {[%clk 0:02:58.5]}
2... d5 {[%clk 0:02:57.8]} 3. Nd2 {[%clk 0:02:58.8]} 3... e5 {[%clk 0:02:56.9]}
4. Ngf3 {[%clk 0:02:58.6]} 4... Bd6 {[%clk 0:02:56.6]} 5. Be2 {[%clk 0:02:58.6]}
5... f5 {[%clk 0:02:56.3]} 6. O-O {[%clk 0:02:55.7]} 6... Nf6 {[%clk 0:02:56.2]}
7. d4 {[%clk 0:02:28.3]} 7... fxe4 {[%clk 0:02:42]} 8. dxe5 {[%clk 0:02:26.5]}
8... exf3 {[%clk 0:02:41.5]} 9. Nxf3 {[%clk 0:02:26.2]} 9... O-O {[%clk
0:02:40.3]} 10. exd6 {[%clk 0:02:25.7]} 10... Qxd6 {[%clk 0:02:39.9]} 11. h3
{[%clk 0:02:25]} 11... Bf5 {[%clk 0:02:38.2]} 12. c4 {[%clk 0:02:23.2]} 12...
Nbd7 {[%clk 0:02:27.6]} 13. Be3 {[%clk 0:02:18.9]} 13... Be4 {[%clk 0:02:19.6]}
14. Qb3 {[%clk 0:02:14.1]} 14... b6 {[%clk 0:02:15.3]} 15. Rad1 {[%clk
0:02:08.2]} 15... Rae8 {[%clk 0:01:58.5]} 16. Ng5 {[%clk 0:01:59.2]} 16... Qe5
{[%clk 0:01:53]} 17. Nxe4 {[%clk 0:01:58]} 17... dxe4 {[%clk 0:01:46.1]} 18. c5+
{[%clk 0:01:50.8]} 18... Kh8 {[%clk 0:01:45.2]} 19. cxb6 {[%clk 0:01:47.2]}
19... axb6 {[%clk 0:01:46.1]} 20. Bd4 {[%clk 0:01:29.1]} 20... Qg5 {[%clk
0:01:38.6]} 21. Bxf6 {[%clk 0:01:20.5]} 21... Nxf6 {[%clk 0:01:34.8]} 22. Qxb6
{[%clk 0:01:19.8]} 22... c5 {[%clk 0:01:33.4]} 23. Qd6 {[%clk 0:01:09.7]} 23...
Rf7 {[%clk 0:00:56.7]} 24. Bb5 {[%clk 0:00:59.8]} 24... Ref8 {[%clk 0:00:54.7]}
25. Qe6 {[%clk 0:00:52.4]} 25... h6 {[%clk 0:00:36.5]} 26. Be2 {[%clk
0:00:45.5]} 26... Rb7 {[%clk 0:00:29.5]} 27. b3 {[%clk 0:00:44.4]} 27... Ra7
{[%clk 0:00:28]} 28. a4 {[%clk 0:00:43.9]} 28... Rb7 {[%clk 0:00:27.3]} 29. a5
{[%clk 0:00:42.2]} 29... Re8 {[%clk 0:00:25.6]} 30. Qc4 {[%clk 0:00:37.1]} 30...
Rb4 {[%clk 0:00:22.7]} 31. Qf7 {[%clk 0:00:32.5]} 31... Rd4 {[%clk 0:00:20.1]}
32. a6 {[%clk 0:00:29]} 32... Qe5 {[%clk 0:00:16]} 33. a7 {[%clk 0:00:26.8]}
33... Ra8 {[%clk 0:00:15.3]} 34. Qb7 {[%clk 0:00:23.4]} 34... Qe8 {[%clk
0:00:12.8]} 35. Bb5 {[%clk 0:00:19.1]} 35... Qd8 {[%clk 0:00:12.3]} 36. Rc1
{[%clk 0:00:15.1]} 36... Nd7 {[%clk 0:00:09.6]} 37. Bc6 {[%clk 0:00:13.4]} 37...
Nb6 {[%clk 0:00:08]} 38. Bxe4 {[%clk 0:00:12.2]} 38... Rd7 {[%clk 0:00:07.5]}
39. Qc6 {[%clk 0:00:11.5]} 39... Raxa7 {[%clk 0:00:07]} 40. Qg6 {[%clk
0:00:11.5]} 40... Qg8 {[%clk 0:00:06.7]} 41. Rxc5 {[%clk 0:00:11.3]} 41... Nc8
{[%clk 0:00:06.1]} 42. Rxc8 {[%clk 0:00:10.2]} 42... Rd6 {[%clk 0:00:06.4]} 43.
Qh7# {[%clk 0:00:08.8]} 1-0

[Event "*** SCC Grand Prix: Titled Tuesday Blitz"]
[Site "Chess.com"]
[Date "2020.06.02"]
[Round "3"]
[White "GoltsevDmitry2000"]
[Black "rasmussvane"]
[Result "0-1"]
[WhiteElo "2643"]
[BlackElo "2891"]
[TimeControl "180+1"]
[EndTime "10:29:17 PDT"]
[Termination "rasmussvane won by checkmate"]

1. e4 {[%clk 0:03:00]} 1... c6 {[%clk 0:03:00.2]} 2. Nf3 {[%clk 0:02:58.8]} 2...
d5 {[%clk 0:03:01.1]} 3. exd5 {[%clk 0:02:59.2]} 3... cxd5 {[%clk 0:03:01.4]} 4.
d4 {[%clk 0:03:00]} 4... Nf6 {[%clk 0:03:02.3]} 5. c4 {[%clk 0:02:59.4]} 5...
Nc6 {[%clk 0:03:02.6]} 6. Nc3 {[%clk 0:02:58.6]} 6... a6 {[%clk 0:03:03.2]} 7.
h3 {[%clk 0:02:57.6]} 7... g6 {[%clk 0:03:02.3]} 8. Bg5 {[%clk 0:02:53.6]} 8...
Be6 {[%clk 0:02:51.8]} 9. Bxf6 {[%clk 0:02:48.6]} 9... exf6 {[%clk 0:02:52.7]}
10. cxd5 {[%clk 0:02:48.2]} 10... Bxd5 {[%clk 0:02:53.6]} 11. Nxd5 {[%clk
0:02:45.1]} 11... Qxd5 {[%clk 0:02:54.5]} 12. a3 {[%clk 0:02:44.1]} 12... Bg7
{[%clk 0:02:50.3]} 13. Qe2+ {[%clk 0:02:24.4]} 13... Kd7 {[%clk 0:02:40.8]} 14.
Qc4 {[%clk 0:02:22.4]} 14... Rhe8+ {[%clk 0:02:38.8]} 15. Kd2 {[%clk 0:02:17.3]}
15... Kd6 {[%clk 0:02:34]} 16. Bd3 {[%clk 0:01:29.4]} 16... Bh6+ {[%clk
0:02:21.9]} 17. Kc2 {[%clk 0:01:27.2]} 17... Rac8 {[%clk 0:02:19.3]} 18. Qxd5+
{[%clk 0:01:17.3]} 18... Kxd5 {[%clk 0:02:20.2]} 19. Kb3 {[%clk 0:01:15.1]}
19... Nxd4+ {[%clk 0:01:49.8]} 20. Nxd4 {[%clk 0:01:10]} 20... Kxd4 {[%clk
0:01:50.7]} 21. Rad1 {[%clk 0:01:09]} 21... Kc5 {[%clk 0:01:49.5]} 22. Bc4
{[%clk 0:01:00.3]} 22... Re7 {[%clk 0:01:49.4]} 23. Bxf7 {[%clk 0:00:35.5]}
23... Rc6 {[%clk 0:01:19.6]} 24. Bd5 {[%clk 0:00:25.5]} 24... Rb6+ {[%clk
0:01:19.4]} 25. Kc3 {[%clk 0:00:22.5]} 25... Rd6 {[%clk 0:00:18.1]} 26. b4+
{[%clk 0:00:16.9]} 26... Kb6 {[%clk 0:00:17.9]} 27. Bf3 {[%clk 0:00:16.8]} 27...
Bf4 {[%clk 0:00:17.5]} 28. Rxd6+ {[%clk 0:00:16.5]} 28... Bxd6 {[%clk
0:00:18.4]} 29. Rd1 {[%clk 0:00:17]} 29... Be5+ {[%clk 0:00:18.7]} 30. Kb3
{[%clk 0:00:16.2]} 30... Rc7 {[%clk 0:00:19.6]} 31. Bd5 {[%clk 0:00:12.2]} 31...
Rc3+ {[%clk 0:00:16.7]} 32. Ka2 {[%clk 0:00:05.7]} 32... Rc2+ {[%clk 0:00:16.9]}
33. Kb3 {[%clk 0:00:06.2]} 33... Rxf2 {[%clk 0:00:11.9]} 34. Bf3 {[%clk
0:00:06.4]} 34... Rb2+ {[%clk 0:00:11.6]} 35. Ka4 {[%clk 0:00:06.6]} 35... Kc7
{[%clk 0:00:11.5]} 36. Rc1+ {[%clk 0:00:07]} 36... Kb8 {[%clk 0:00:10.5]} 37.
Rd1 {[%clk 0:00:07.1]} 37... Bc7 {[%clk 0:00:10.5]} 38. b5 {[%clk 0:00:03]}
38... axb5# {[%clk 0:00:10.5]} 0-1

[Event "*** SCC Grand Prix: Titled Tuesday Blitz"]
[Site "Chess.com"]
[Date "2020.06.02"]
[Round "3"]
[White "BogdanBelyakov89"]
[Black "Zufi1811"]
[Result "1-0"]
[WhiteElo "2657"]
[BlackElo "2458"]
[TimeControl "180+1"]
[EndTime "10:29:17 PDT"]
[Termination "BogdanBelyakov89 won on time"]

1. e4 {[%clk 0:03:00.9]} 1... c5 {[%clk 0:02:58.8]} 2. c3 {[%clk 0:03:00.5]}
2... Nf6 {[%clk 0:02:57.7]} 3. e5 {[%clk 0:03:00.1]} 3... Nd5 {[%clk 0:02:58.2]}
4. Nf3 {[%clk 0:03:01]} 4... Nc6 {[%clk 0:02:58.2]} 5. d4 {[%clk 0:03:00.2]}
5... cxd4 {[%clk 0:02:58.1]} 6. cxd4 {[%clk 0:03:01.1]} 6... d6 {[%clk
0:02:57.8]} 7. Bc4 {[%clk 0:03:00.9]} 7... e6 {[%clk 0:02:57]} 8. O-O {[%clk
0:03:00.2]} 8... Be7 {[%clk 0:02:57.2]} 9. Qe2 {[%clk 0:02:59.8]} 9... O-O
{[%clk 0:02:57.2]} 10. Bd2 {[%clk 0:02:58.9]} 10... dxe5 {[%clk 0:02:53.7]} 11.
dxe5 {[%clk 0:02:57.6]} 11... Qb6 {[%clk 0:02:32.1]} 12. Nc3 {[%clk 0:02:52.8]}
12... Nxc3 {[%clk 0:02:26.2]} 13. Bxc3 {[%clk 0:02:51.8]} 13... Rd8 {[%clk
0:02:24.9]} 14. Bd3 {[%clk 0:02:45.7]} 14... Bd7 {[%clk 0:02:15.6]} 15. a3
{[%clk 0:02:36]} 15... Be8 {[%clk 0:02:04.1]} 16. h4 {[%clk 0:02:35.2]} 16... g6
{[%clk 0:02:02.6]} 17. h5 {[%clk 0:02:33.9]} 17... Bf8 {[%clk 0:01:56.5]} 18.
hxg6 {[%clk 0:02:30.8]} 18... hxg6 {[%clk 0:01:57.4]} 19. Rad1 {[%clk
0:02:01.5]} 19... Ne7 {[%clk 0:01:53.7]} 20. Qe4 {[%clk 0:01:50.7]} 20... Rxd3
{[%clk 0:01:29.4]} 21. Rxd3 {[%clk 0:01:49.8]} 21... Bb5 {[%clk 0:01:29.4]} 22.
Rfd1 {[%clk 0:01:47.6]} 22... Bxd3 {[%clk 0:01:29]} 23. Rxd3 {[%clk 0:01:48.5]}
23... Nd5 {[%clk 0:01:23.9]} 24. Bd4 {[%clk 0:01:26.2]} 24... Qc6 {[%clk
0:01:12.8]} 25. Bc3 {[%clk 0:00:28.3]} 25... Rc8 {[%clk 0:00:50.5]} 26. Qh4
{[%clk 0:00:27.7]} 26... Be7 {[%clk 0:00:43.4]} 27. Qh6 {[%clk 0:00:24.9]} 27...
Qc4 {[%clk 0:00:33.2]} 28. Rd4 {[%clk 0:00:22.6]} 28... Qe2 {[%clk 0:00:19.4]}
29. Rxd5 {[%clk 0:00:13.1]} 29... exd5 {[%clk 0:00:19.8]} 30. e6 {[%clk
0:00:12.9]} 30... Qd1+ {[%clk 0:00:14.9]} 31. Kh2 {[%clk 0:00:12]} 31... Bd6+
{[%clk 0:00:14.7]} 32. g3 {[%clk 0:00:10.2]} 32... Rxc3 {[%clk 0:00:11.7]} 33.
exf7+ {[%clk 0:00:09.5]} 33... Kxf7 {[%clk 0:00:12]} 34. Ng5+ {[%clk 0:00:09.7]}
34... Kf6 {[%clk 0:00:09.2]} 35. bxc3 {[%clk 0:00:09.6]} 35... Qe2 {[%clk
0:00:06]} 36. Nh3 {[%clk 0:00:06]} 36... Qe5 {[%clk 0:00:03.7]} 37. Qh8+ {[%clk
0:00:04.2]} 37... Ke6 {[%clk 0:00:03.4]} 38. Qc8+ {[%clk 0:00:05]} 38... Kf6
{[%clk 0:00:02.3]} 39. Qxb7 {[%clk 0:00:05.9]} 39... a5 {[%clk 0:00:01.6]} 40.
Qb5 {[%clk 0:00:05.6]} 1-0

[Event "*** SCC Grand Prix: Titled Tuesday Blitz"]
[Site "Chess.com"]
[Date "2020.06.02"]
[Round "3"]
[White "Angel_Hranitel_37"]
[Black "DortmundCity"]
[Result "0-1"]
[WhiteElo "2379"]
[BlackElo "2583"]
[TimeControl "180+1"]
[EndTime "10:29:19 PDT"]
[Termination "DortmundCity won by checkmate"]

1. d4 {[%clk 0:03:00.9]} 1... d5 {[%clk 0:02:58.2]} 2. c4 {[%clk 0:03:00.4]}
2... c6 {[%clk 0:02:58.7]} 3. cxd5 {[%clk 0:03:01]} 3... cxd5 {[%clk 0:02:58.8]}
4. Bg5 {[%clk 0:03:01.8]} 4... Nc6 {[%clk 0:02:58.2]} 5. Nc3 {[%clk 0:03:02.3]}
5... h6 {[%clk 0:02:56.5]} 6. Bh4 {[%clk 0:03:02.4]} 6... g5 {[%clk 0:02:44.9]}
7. Bg3 {[%clk 0:03:01.8]} 7... Bg7 {[%clk 0:02:45.8]} 8. e3 {[%clk 0:02:58.1]}
8... Nf6 {[%clk 0:02:35.9]} 9. Bd3 {[%clk 0:02:56.1]} 9... O-O {[%clk
0:02:23.2]} 10. Nf3 {[%clk 0:02:55.3]} 10... Bg4 {[%clk 0:02:20.1]} 11. h4
{[%clk 0:02:52.6]} 11... gxh4 {[%clk 0:02:07.8]} 12. Rxh4 {[%clk 0:02:53.5]}
12... h5 {[%clk 0:02:06.5]} 13. Rc1 {[%clk 0:02:25.7]} 13... Rc8 {[%clk
0:01:47.5]} 14. Bb1 {[%clk 0:02:25.7]} 14... e6 {[%clk 0:01:42.1]} 15. a3 {[%clk
0:02:23.2]} 15... Ne7 {[%clk 0:01:37.3]} 16. Be5 {[%clk 0:01:30]} 16... Ng6
{[%clk 0:01:32.7]} 17. Bxg6 {[%clk 0:01:29.2]} 17... fxg6 {[%clk 0:01:32.6]} 18.
Rh2 {[%clk 0:00:50.4]} 18... Ne4 {[%clk 0:01:28.8]} 19. Bxg7 {[%clk 0:00:44.5]}
19... Kxg7 {[%clk 0:01:27.8]} 20. Qb3 {[%clk 0:00:33.1]} 20... Qc7 {[%clk
0:00:58.2]} 21. Rh1 {[%clk 0:00:18.9]} 21... Bxf3 {[%clk 0:00:58.2]} 22. gxf3
{[%clk 0:00:19.8]} 22... Rxf3 {[%clk 0:00:58.7]} 23. Rf1 {[%clk 0:00:16.6]}
23... Rcf8 {[%clk 0:00:54.1]} 24. Ne2 {[%clk 0:00:08.4]} 24... Qa5+ {[%clk
0:00:54.1]} 25. Qb4 {[%clk 0:00:08.3]} 25... Qxb4+ {[%clk 0:00:53.5]} 26. axb4
{[%clk 0:00:09.2]} 26... Rxf2 {[%clk 0:00:54.1]} 27. Rc7+ {[%clk 0:00:07.6]}
27... R8f7 {[%clk 0:00:53.9]} 28. Rxf2 {[%clk 0:00:07.7]} 28... Rxc7 {[%clk
0:00:52.7]} 29. Rg2 {[%clk 0:00:07.5]} 29... Kf6 {[%clk 0:00:50]} 30. Kd1 {[%clk
0:00:07.8]} 30... g5 {[%clk 0:00:50]} 31. Rh2 {[%clk 0:00:07.4]} 31... h4 {[%clk
0:00:50.2]} 32. Ng1 {[%clk 0:00:07.7]} 32... Kf5 {[%clk 0:00:47.2]} 33. Nf3
{[%clk 0:00:07.9]} 33... Kg4 {[%clk 0:00:39.7]} 34. Ne5+ {[%clk 0:00:04.4]}
34... Kg3 {[%clk 0:00:39.6]} 35. Re2 {[%clk 0:00:04.6]} 35... h3 {[%clk
0:00:36.1]} 36. Re1 {[%clk 0:00:04.9]} 36... h2 {[%clk 0:00:36.2]} 37. b3 {[%clk
0:00:03.8]} 37... Nf2+ {[%clk 0:00:33.8]} 38. Ke2 {[%clk 0:00:03.8]} 38... h1=Q
{[%clk 0:00:33.4]} 39. Rxh1 {[%clk 0:00:03.7]} 39... Nxh1 {[%clk 0:00:33.8]} 40.
b5 {[%clk 0:00:04.6]} 40... Nf2 {[%clk 0:00:33.3]} 41. e4 {[%clk 0:00:04.8]}
41... Nxe4 {[%clk 0:00:32.8]} 42. b4 {[%clk 0:00:05.6]} 42... Nc3+ {[%clk
0:00:32.7]} 43. Kd3 {[%clk 0:00:06.5]} 43... Nxb5 {[%clk 0:00:33.6]} 44. Ng6
{[%clk 0:00:05.9]} 44... Nd6 {[%clk 0:00:33.4]} 45. Ne5 {[%clk 0:00:06.8]} 45...
Nc4 {[%clk 0:00:33.9]} 46. Ng6 {[%clk 0:00:05.9]} 46... Rf7 {[%clk 0:00:33.7]}
47. Nf8 {[%clk 0:00:06.5]} 47... Rxf8 {[%clk 0:00:33.6]} 48. b5 {[%clk
0:00:06.4]} 48... b6 {[%clk 0:00:34.1]} 49. Kc3 {[%clk 0:00:06.4]} 49... Kf3
{[%clk 0:00:34.5]} 50. Kb4 {[%clk 0:00:07.3]} 50... Ke4 {[%clk 0:00:34.7]} 51.
Ka4 {[%clk 0:00:08.1]} 51... Kxd4 {[%clk 0:00:35]} 52. Kb3 {[%clk 0:00:09]}
52... Kd3 {[%clk 0:00:35.1]} 53. Ka4 {[%clk 0:00:09.6]} 53... d4 {[%clk
0:00:34.9]} 54. Kb4 {[%clk 0:00:10.1]} 54... e5 {[%clk 0:00:35.8]} 55. Kb3
{[%clk 0:00:10.8]} 55... e4 {[%clk 0:00:36.7]} 56. Ka2 {[%clk 0:00:11.4]} 56...
g4 {[%clk 0:00:37.6]} 57. Kb3 {[%clk 0:00:12]} 57... e3 {[%clk 0:00:38.5]} 58.
Kb4 {[%clk 0:00:12.7]} 58... Nd2 {[%clk 0:00:39.4]} 59. Ka4 {[%clk 0:00:13.4]}
59... Ne4 {[%clk 0:00:39.5]} 60. Kb4 {[%clk 0:00:13.8]} 60... e2 {[%clk
0:00:39.5]} 61. Kb3 {[%clk 0:00:14.6]} 61... e1=Q {[%clk 0:00:39]} 62. Ka3
{[%clk 0:00:15.5]} 62... Kc4 {[%clk 0:00:38]} 63. Ka4 {[%clk 0:00:16.3]} 63...
Qb4# {[%clk 0:00:37.6]} 0-1

[Event "*** SCC Grand Prix: Titled Tuesday Blitz"]
[Site "Chess.com"]
[Date "2020.06.02"]
[Round "3"]
[White "attack2mateU"]
[Black "Sibelephant"]
[Result "0-1"]
[WhiteElo "2712"]
[BlackElo "3164"]
[TimeControl "180+1"]
[EndTime "10:29:20 PDT"]
[Termination "Sibelephant won by resignation"]

1. e4 {[%clk 0:03:00.9]} 1... c5 {[%clk 0:02:59.2]} 2. Nf3 {[%clk 0:03:00.6]}
2... e6 {[%clk 0:02:59.8]} 3. c3 {[%clk 0:02:58.3]} 3... d5 {[%clk 0:02:58.5]}
4. exd5 {[%clk 0:02:57.2]} 4... Qxd5 {[%clk 0:02:58.8]} 5. d4 {[%clk 0:02:57.2]}
5... Nf6 {[%clk 0:02:59.3]} 6. Be2 {[%clk 0:02:54.4]} 6... Nc6 {[%clk
0:02:58.7]} 7. O-O {[%clk 0:02:54.6]} 7... cxd4 {[%clk 0:02:55.7]} 8. cxd4
{[%clk 0:02:54.6]} 8... Be7 {[%clk 0:02:55.7]} 9. Nc3 {[%clk 0:02:54.7]} 9...
Qd6 {[%clk 0:02:52.1]} 10. Be3 {[%clk 0:02:52.2]} 10... O-O {[%clk 0:02:51.1]}
11. a3 {[%clk 0:02:51.7]} 11... b6 {[%clk 0:02:51.2]} 12. Bd3 {[%clk 0:02:45.6]}
12... Bb7 {[%clk 0:02:50.2]} 13. Qe2 {[%clk 0:02:46.2]} 13... Nd5 {[%clk
0:02:35.3]} 14. Ne4 {[%clk 0:02:37.8]} 14... Qd7 {[%clk 0:02:16.2]} 15. Rad1
{[%clk 0:02:24.6]} 15... Rad8 {[%clk 0:02:08.9]} 16. Bc1 {[%clk 0:02:10.3]}
16... Qc7 {[%clk 0:02:06.9]} 17. Neg5 {[%clk 0:02:08.3]} 17... h6 {[%clk
0:01:48]} 18. Nxe6 {[%clk 0:01:39.7]} 18... fxe6 {[%clk 0:01:47.8]} 19. Qxe6+
{[%clk 0:01:40.6]} 19... Rf7 {[%clk 0:01:48.4]} 20. Bg6 {[%clk 0:01:14.2]} 20...
Bf8 {[%clk 0:01:37.6]} 21. Ne5 {[%clk 0:01:07.9]} 21... Nxe5 {[%clk 0:01:37]}
22. dxe5 {[%clk 0:01:08.8]} 22... Qe7 {[%clk 0:01:22.9]} 23. Bxf7+ {[%clk
0:01:02.1]} 23... Qxf7 {[%clk 0:01:22.3]} 24. Qxf7+ {[%clk 0:00:55.9]} 24...
Kxf7 {[%clk 0:01:22.4]} 25. Rfe1 {[%clk 0:00:34.8]} 25... Ke6 {[%clk 0:01:21.3]}
26. Rd3 {[%clk 0:00:23.5]} 26... Rc8 {[%clk 0:01:16.7]} 27. Rg3 {[%clk
0:00:20.6]} 27... Ne7 {[%clk 0:00:57.1]} 28. h4 {[%clk 0:00:19.2]} 28... g6
{[%clk 0:00:46.5]} 29. Bd2 {[%clk 0:00:07.9]} 29... a5 {[%clk 0:00:35.8]} 30.
Rb3 {[%clk 0:00:08.1]} 30... Nd5 {[%clk 0:00:24.6]} 31. Rg3 {[%clk 0:00:08]}
31... Ne7 {[%clk 0:00:12.5]} 32. Rb3 {[%clk 0:00:07.4]} 32... Rc2 {[%clk
0:00:10.1]} 33. Rxb6+ {[%clk 0:00:06.8]} 33... Bc6 {[%clk 0:00:10.8]} 34. Bxa5
{[%clk 0:00:06.5]} 34... Nd5 {[%clk 0:00:10.8]} 35. Rb8 {[%clk 0:00:03.6]} 35...
Bc5 {[%clk 0:00:10.5]} 36. Rf1 {[%clk 0:00:02.9]} 36... Ne3 {[%clk 0:00:08.1]}
37. fxe3 {[%clk 0:00:02.3]} 37... Rxg2+ {[%clk 0:00:08.1]} 38. Kh1 {[%clk
0:00:02.7]} 38... Rxb2+ {[%clk 0:00:08.3]} 39. Kg1 {[%clk 0:00:03.1]} 39... Rg2+
{[%clk 0:00:04.2]} 40. Kh1 {[%clk 0:00:03.1]} 40... Rc2+ {[%clk 0:00:04.1]} 41.
Kg1 {[%clk 0:00:03.5]} 41... Bxe3+ {[%clk 0:00:04.3]} 42. Rf2 {[%clk 0:00:03.3]}
42... Bxf2+ {[%clk 0:00:04.5]} 0-1

[Event "*** SCC Grand Prix: Titled Tuesday Blitz"]
[Site "Chess.com"]
[Date "2020.06.02"]
[Round "3"]
[White "PawnEatingZombie"]
[Black "Kildepiotr"]
[Result "0-1"]
[WhiteElo "2215"]
[BlackElo "2478"]
[TimeControl "180+1"]
[EndTime "10:29:20 PDT"]
[Termination "Kildepiotr won on time"]

1. d4 {[%clk 0:03:00.9]} 1... c5 {[%clk 0:02:59.6]} 2. d5 {[%clk 0:03:00.1]}
2... e5 {[%clk 0:02:59.9]} 3. e4 {[%clk 0:02:59.6]} 3... d6 {[%clk 0:03:00.1]}
4. Bb5+ {[%clk 0:02:59.4]} 4... Nd7 {[%clk 0:03:00.2]} 5. a4 {[%clk 0:02:58.5]}
5... Be7 {[%clk 0:02:59.4]} 6. Nf3 {[%clk 0:02:57.2]} 6... Nf6 {[%clk
0:02:59.3]} 7. Nbd2 {[%clk 0:02:49.3]} 7... O-O {[%clk 0:02:58.4]} 8. O-O {[%clk
0:02:48.9]} 8... Ne8 {[%clk 0:02:56.6]} 9. Bd3 {[%clk 0:02:36.3]} 9... b6 {[%clk
0:02:51.1]} 10. Nc4 {[%clk 0:02:35]} 10... a6 {[%clk 0:02:37.4]} 11. b3 {[%clk
0:02:20]} 11... Bb7 {[%clk 0:02:26.9]} 12. Ne3 {[%clk 0:02:16.3]} 12... Nc7
{[%clk 0:02:21.1]} 13. c4 {[%clk 0:02:11.7]} 13... g6 {[%clk 0:02:14]} 14. Ng4
{[%clk 0:02:04.2]} 14... b5 {[%clk 0:02:07.9]} 15. axb5 {[%clk 0:02:02.6]} 15...
axb5 {[%clk 0:02:07.7]} 16. Rxa8 {[%clk 0:02:02]} 16... Qxa8 {[%clk 0:02:06.4]}
17. Ng5 {[%clk 0:01:36]} 17... Nf6 {[%clk 0:01:54.6]} 18. Nh6+ {[%clk
0:01:32.9]} 18... Kg7 {[%clk 0:01:53.5]} 19. f4 {[%clk 0:01:19.5]} 19... bxc4
{[%clk 0:01:44.1]} 20. bxc4 {[%clk 0:01:18.4]} 20... Qa1 {[%clk 0:01:38.3]} 21.
fxe5 {[%clk 0:01:12]} 21... Qxe5 {[%clk 0:01:37.3]} 22. Kh1 {[%clk 0:00:58.7]}
22... Nce8 {[%clk 0:01:11.7]} 23. Qd2 {[%clk 0:00:43.3]} 23... Bc8 {[%clk
0:01:01.9]} 24. Bb2 {[%clk 0:00:41.5]} 24... Qxb2 {[%clk 0:00:46]} 25. Qxb2
{[%clk 0:00:40.8]} 25... Kxh6 {[%clk 0:00:46.4]} 26. Nf3 {[%clk 0:00:32.5]}
26... Nd7 {[%clk 0:00:42.2]} 27. e5 {[%clk 0:00:31.6]} 27... dxe5 {[%clk
0:00:30.3]} 28. Nxe5 {[%clk 0:00:31.5]} 28... Nxe5 {[%clk 0:00:28.2]} 29. Qxe5
{[%clk 0:00:30.6]} 29... Bd6 {[%clk 0:00:28.5]} 30. Qe3+ {[%clk 0:00:27.3]}
30... Kg7 {[%clk 0:00:28.4]} 31. Ra1 {[%clk 0:00:20.5]} 31... Nf6 {[%clk
0:00:27.2]} 32. Ra8 {[%clk 0:00:14.8]} 32... Re8 {[%clk 0:00:27.3]} 33. Qd2
{[%clk 0:00:12.6]} 33... Bd7 {[%clk 0:00:24.1]} 34. Rxe8 {[%clk 0:00:11.5]}
34... Bxe8 {[%clk 0:00:25]} 35. Qb2 {[%clk 0:00:07]} 35... Bd7 {[%clk
0:00:22.3]} 36. g3 {[%clk 0:00:05.3]} 36... h5 {[%clk 0:00:21.7]} 37. Qb7 {[%clk
0:00:05.1]} 37... Kf8 {[%clk 0:00:20.4]} 38. Kg2 {[%clk 0:00:03.1]} 38... Ke7
{[%clk 0:00:20.5]} 39. h3 {[%clk 0:00:03.2]} 39... Nh7 {[%clk 0:00:19.4]} 40.
Be2 {[%clk 0:00:03.6]} 40... Ng5 {[%clk 0:00:18.6]} 41. g4 {[%clk 0:00:04.1]}
41... h4 {[%clk 0:00:18.1]} 42. Kf2 {[%clk 0:00:03.1]} 42... Ne4+ {[%clk
0:00:18.1]} 43. Kg2 {[%clk 0:00:02.6]} 43... Ng5 {[%clk 0:00:16.7]} 44. Bf3
{[%clk 0:00:01.7]} 44... Nxf3 {[%clk 0:00:15.9]} 45. Kxf3 {[%clk 0:00:01.8]}
45... g5 {[%clk 0:00:16.3]} 46. Qa7 {[%clk 0:00:02.1]} 46... f6 {[%clk
0:00:15.8]} 47. Qb7 {[%clk 0:00:02.6]} 47... Be5 {[%clk 0:00:16]} 0-1

[Event "*** SCC Grand Prix: Titled Tuesday Blitz"]
[Site "Chess.com"]
[Date "2020.06.02"]
[Round "3"]
[White "ftorodent"]
[Black "amintabatabaei"]
[Result "1-0"]
[WhiteElo "2680"]
[BlackElo "2922"]
[TimeControl "180+1"]
[EndTime "10:29:21 PDT"]
[Termination "ftorodent won by checkmate"]

1. d4 {[%clk 0:03:00.9]} 1... d5 {[%clk 0:02:59.3]} 2. c4 {[%clk 0:03:00.7]}
2... c6 {[%clk 0:02:59.2]} 3. cxd5 {[%clk 0:02:59.9]} 3... cxd5 {[%clk
0:03:00.1]} 4. Bf4 {[%clk 0:03:00]} 4... Nc6 {[%clk 0:02:59.8]} 5. e3 {[%clk
0:03:00]} 5... Nf6 {[%clk 0:02:59.4]} 6. Nc3 {[%clk 0:03:00.1]} 6... Bf5 {[%clk
0:02:59.9]} 7. Qb3 {[%clk 0:02:57.2]} 7... Na5 {[%clk 0:03:00.1]} 8. Qa4+ {[%clk
0:02:57.4]} 8... Bd7 {[%clk 0:03:00.7]} 9. Qc2 {[%clk 0:02:57.8]} 9... e6 {[%clk
0:03:00.4]} 10. Bd3 {[%clk 0:02:57.6]} 10... Rc8 {[%clk 0:02:48.9]} 11. Nf3
{[%clk 0:02:57.4]} 11... Bb4 {[%clk 0:02:40.7]} 12. O-O {[%clk 0:02:53.8]} 12...
O-O {[%clk 0:02:38.6]} 13. Qe2 {[%clk 0:02:44.6]} 13... h6 {[%clk 0:02:26.6]}
14. Rfc1 {[%clk 0:02:37.8]} 14... Nh5 {[%clk 0:02:17.8]} 15. Be5 {[%clk
0:02:12]} 15... f6 {[%clk 0:02:00.4]} 16. Bf4 {[%clk 0:01:36]} 16... g5 {[%clk
0:01:23.3]} 17. Bg3 {[%clk 0:01:21.3]} 17... Nxg3 {[%clk 0:01:22.7]} 18. hxg3
{[%clk 0:01:20.9]} 18... g4 {[%clk 0:01:21.3]} 19. Nh4 {[%clk 0:01:18.3]} 19...
f5 {[%clk 0:01:21.1]} 20. Ng6 {[%clk 0:01:17.6]} 20... Re8 {[%clk 0:01:10.9]}
21. Nf4 {[%clk 0:01:13.4]} 21... Qg5 {[%clk 0:00:58.8]} 22. a3 {[%clk
0:00:57.3]} 22... Bxc3 {[%clk 0:00:53.3]} 23. bxc3 {[%clk 0:00:57.4]} 23... Nc4
{[%clk 0:00:51.4]} 24. Rab1 {[%clk 0:00:44.1]} 24... b6 {[%clk 0:00:51.6]} 25.
Rb4 {[%clk 0:00:42.3]} 25... a5 {[%clk 0:00:25.1]} 26. Rxc4 {[%clk 0:00:41.9]}
26... dxc4 {[%clk 0:00:24]} 27. Bxc4 {[%clk 0:00:42.1]} 27... Qe7 {[%clk
0:00:20.8]} 28. Rb1 {[%clk 0:00:28.3]} 28... Qd6 {[%clk 0:00:20]} 29. Bb5 {[%clk
0:00:24.6]} 29... Re7 {[%clk 0:00:18.3]} 30. Bxd7 {[%clk 0:00:23.5]} 30... Rxd7
{[%clk 0:00:19.2]} 31. Qa2 {[%clk 0:00:22.3]} 31... Kf7 {[%clk 0:00:18]} 32. c4
{[%clk 0:00:21.6]} 32... Kf6 {[%clk 0:00:15.5]} 33. Rb5 {[%clk 0:00:20.8]} 33...
Qc7 {[%clk 0:00:11.3]} 34. Re5 {[%clk 0:00:19.8]} 34... Rd6 {[%clk 0:00:11.1]}
35. c5 {[%clk 0:00:19.9]} 35... bxc5 {[%clk 0:00:11.7]} 36. Rxc5 {[%clk
0:00:19.4]} 36... Qb7 {[%clk 0:00:08.6]} 37. Re5 {[%clk 0:00:18.3]} 37... Rc1+
{[%clk 0:00:05.7]} 38. Kh2 {[%clk 0:00:17.8]} 38... Qc8 {[%clk 0:00:06]} 39. Qb2
{[%clk 0:00:14.2]} 39... Rc2 {[%clk 0:00:02.7]} 40. Qa1 {[%clk 0:00:13.9]} 40...
Kf7 {[%clk 0:00:02.2]} 41. d5 {[%clk 0:00:13.3]} 41... exd5 {[%clk 0:00:02.8]}
42. Qd4 {[%clk 0:00:12.9]} 42... Qc5 {[%clk 0:00:02]} 43. Rxf5+ {[%clk
0:00:11.7]} 43... Ke7 {[%clk 0:00:01.4]} 44. Qg7+ {[%clk 0:00:11.4]} 44... Kd8
{[%clk 0:00:02.1]} 45. Rf8# {[%clk 0:00:11.5]} 1-0